Cogmind - Beta 13 @@@ ROGUE MODE // 2024.06.20 @ 15:05:13 Player: s0lid Result: Destroyed by DAS Turret with DAS Cannon Performance ------------- Evolutions (1) 500 Regions Visited (5) 1000 Robots Destroyed (16) 80 Value Destroyed (450) 450 Prototype IDs (4) 80 Alien Tech Used (0) 0 Bonus (200) 200 TOTAL SCORE: 2310 Bonus ------- Pacifist 200 Cogmind --------- Core Integrity 0/400 Matter 300/300 Energy 98/100 System Corruption 8% Temperature Cool (0) Movement Core (50) Location -9/Exiles Parts ------- > --- POWER (1) -------- (None) > --- PROPULSION (2) --- (None) > --- UTILITY (4) ------ Improved Targeting Computer > --- WEAPON (2) ------- (None) > --- INVENTORY (5) ---- Cooled Ion Engine Armored Wheel Experimental Sensor Array Grenade Launcher Signal Generator Peak State ------------ > --- POWER ------------ Cooled Ion Engine > --- PROPULSION ------- Improved Aluminum Leg Improved Titanium Leg > --- UTILITY ---------- Small Storage Unit Weight Redist. System Improved Targeting Computer Microactuators > --- WEAPON ----------- Assault Cannon Assault Cannon > --- INVENTORY -------- Cooled Ion Engine Cooled Ion Engine Armored Wheel High-capacity Matter Pod High-capacity Matter Pod Grenade Launcher Mining Laser Signal Generator [Rating: 25] Favorites ----------- Power Heavy Ion Engine Engine Heavy Ion Engine Propulsion Improved Aluminum Leg Leg Improved Aluminum Leg Wheel Armored Wheel Utility Improved Propulsion Shielding Device Terrain Scanner Storage Small Storage Unit Processor Improved Targeting Computer Protection Improved Propulsion Shielding Weapon Assault Cannon Energy Gun Particle Gun Ballistic Gun Assault Rifle Ballistic Cannon Assault Cannon Special Weapon Mining Laser Build | -11 -10 -10 -9 -9 -9 ------- Run | Yrd Mat Min Mat Min Exi Slots Evolved 2 | . . . 2 . . Power . | . . . . . . Propulsion . | . . . . . . Utility 2 | . . . 2 . . Weapon . | . . . . . . Parts Attached 37 | 4 8 5 16 4 . Power 6 | 1 2 . 3 . . Engine 6 | 1 2 . 3 . . Core . | . . . . . . Reactor . | . . . . . . Propulsion 12 | 2 2 3 4 1 . Treads . | . . . . . . Leg 10 | 2 2 3 2 1 . Wheel 2 | . . . 2 . . Hover . | . . . . . . Flight . | . . . . . . Utility 11 | . 2 . 6 3 . Device 3 | . 1 . 1 1 . Storage 1 | . 1 . . . . Processor 3 | . . . 3 . . Hackware . | . . . . . . Protection 4 | . . . 2 2 . Artifact . | . . . . . . Weapon 8 | 1 2 2 3 . . Energy Gun 3 | 1 1 1 . . . Energy Cannon . | . . . . . . Ballistic Gun 1 | . . 1 . . . Ballistic Cannon 3 | . . . 3 . . Launcher . | . . . . . . Special Weapon 1 | . 1 . . . . Impact Weapon . | . . . . . . Slashing Weapon . | . . . . . . Piercing Weapon . | . . . . . . Special Melee Weapon . | . . . . . . Unidentified Prototypes 2 | . 1 . 1 . . Parts Lost 13 | . . 5 . . 8 Power 1 | . . . . . 1 Propulsion 4 | . . 2 . . 2 Utility 4 | . . 1 . . 3 Weapon 4 | . . 2 . . 2 Highest Loss Streak 8 | . . 3 . . 8 To Critical Strikes . | . . . . . . Average Slot Usage (%) 95 | . 86 93 98 100 94 Engine 11 | . 10 14 11 11 11 Leg 21 | . 28 27 17 22 21 Wheel 2 | . . . 4 . . Device 5 | . 9 9 . 11 9 Storage 11 | . 10 14 11 11 10 Processor 7 | . . . 11 11 11 Protection 10 | . . . 19 11 10 Energy Gun 4 | . 14 12 . . . Ballistic Gun 1 | . . 6 . . . Ballistic Cannon 13 | . . . 21 22 19 Special Weapon 3 | . 13 7 . . . Naked Turns . | . . . . . . Heaviest Build 27 | 5 18 21 27 25 25 Greatest Support 39 | 10 26 28 32 39 39 Greatest Overweight (x) 2 | 1 . 1 2 . . Average Overweight (x) . | . . . 1 . . Largest Inventory Capacity 8 | 5 8 8 8 8 8 Average Capacity 7 | 5 7 8 8 8 7 Most Carried 8 | 5 8 8 8 8 8 Average Carried 7 | 2 6 7 7 7 7 Final Capacity 8 | 5 8 8 8 8 5 Final Carried 8 | 5 8 7 8 8 5 Class Distribution -------------------- 100% | Mutant Dominant Class ---------------- Mutant | -10/Materials Mutant | -10/Mines Mutant | -9/Materials Mutant | -9/Mines Mutant | -9/Exiles Resources | -11 -10 -10 -9 -9 -9 ----------- Run | Yrd Mat Min Mat Min Exi Matter Collected 1161 | 184 . 237 677 63 . Remotely . | . . . . . . Salvage Created 449 | . . 11 402 . 36 Parts 41 | . . . 38 . 3 Haulers Intercepted 1 | . . . 1 . . Recyclers Shooed 1 | . . . 1 . . Parts Field Recycled . | . . . . . . Retrieved Matter . | . . . . . . Parts Self-Destructed . | . . . . . . Prevented . | . . . . . . Kills | -11 -10 -10 -9 -9 -9 ------- Run | Yrd Mat Min Mat Min Exi Combat Hostiles Destroyed 12 | . . 1 11 . . Guns 1 | . . 1 . . . Cannons 11 | . . . 11 . . Classes Destroyed 9 | . . 1 8 . . Worker 1 | . . . 1 . . Builder 1 | . . . 1 . . Hauler 1 | . . . 1 . . Watcher 2 | . . . 2 . . Swarmer 3 | . . . 3 . . Grunt 4 | . . . 4 . . Brawler 1 | . . . 1 . . Sentry 3 | . . . 3 . . Assembled 1 | . . 1 . . . Best Kill Streak 4 | . . 1 4 . . Combat Bots Only 3 | . . 1 3 . . Max Kills in Single Turn 1 | . . 1 1 . . Gunslinging . | . . . . . . Exploded . | . . . . . . Melee . | . . . . . . Uniques/NPCs Destroyed . | . . . . . . Combat | -11 -10 -10 -9 -9 -9 -------- Run | Yrd Mat Min Mat Min Exi Hostile Shots Fired 210 | . . 77 80 . 53 Missed 65 | . . 29 26 . 10 Damage Taken 2503 | . . 860 637 6 1000 Core 608 | . . 178 126 . 304 Absorbed by Shields . | . . . . . . Redirected to Shielding 217 | . . . 100 1 116 Regen/Repaired (Parts) 216 | . . . 216 . . Core Remaining (%) 64 | 100 . 28 . . . Volleys Fired 55 | . . 10 40 1 4 Largest 2 | . . 2 2 2 1 Hottest 88 | . . 85 88 88 44 Shots Fired 105 | . . 18 80 2 5 Gun 18 | . . 18 . . . Cannon 87 | . . . 80 2 5 Launcher . | . . . . . . Special . | . . . . . . Kinetic 95 | . . 8 80 2 5 Thermal 10 | . . 10 . . . Explosive . | . . . . . . Electromagnetic . | . . . . . . Robot Hit Streak 5 | . . 3 5 . 3 Robot Miss Streak 5 | . . 5 4 . 2 Penetration Max . | . . . . . . Secondary Targets . | . . . . . . Shots Hit Robots 51 | . . 8 40 . 3 Core Hits 23 | . . 6 16 . 1 Critical Kills . | . . . . . . Critical Parts Destroyed . | . . . . . . Critical Strikes 2 | . . . 2 . . Blast 2 | . . . 2 . . Melee Attacks . | . . . . . . Impact . | . . . . . . Slashing . | . . . . . . Piercing . | . . . . . . Sneak Attacks . | . . . . . . Combat Hostiles . | . . . . . . Follow-up Attacks . | . . . . . . Damage Inflicted 1230 | . . 148 1018 . 64 Guns 106 | . . 106 . . . Cannons 1082 | . . . 1018 . 64 Explosions . | . . . . . . Melee . | . . . . . . Ramming 42 | . . 42 . . . Kinetic 1118 | . . 36 1018 . 64 Thermal 70 | . . 70 . . . Explosive . | . . . . . . Electromagnetic . | . . . . . . Impact . | . . . . . . Slashing . | . . . . . . Piercing . | . . . . . . Highest Corruption 8 | . 1 4 7 7 8 Average Corruption 3 | . 1 1 5 7 7 Corruption Purged . | . . . . . . Corruption Blocked . | . . . . . . Effects 19 | . 1 5 2 7 4 Message Errors 3 | . . 1 1 . 1 Matter Fused 5 | . . 2 . 3 . Heat Flow Errors 3 | . . . . 2 1 Energy Discharges 1 | . . . 1 . . Data Loss (minor) 1 | . 1 . . . . Data Loss (major) 2 | . . 1 . 1 . Misfires 1 | . . . . . 1 Alerts 2 | . . . . 1 1 Weapon Failures 1 | . . 1 . . . Overload Shots . | . . . . . . Overflow Damage 3 | . . . 3 . . Projectiles 3 | . . . 3 . . Explosions . | . . . . . . Melee . | . . . . . . Knockbacks 10 | . . . 9 . 1 Impact . | . . . . . . Kinetic 8 | . . . 7 . 1 Secondary 2 | . . . 2 . . Self-Inflicted Damage . | . . . . . . Shots . | . . . . . . Rammed . | . . . . . . Targets Rammed 15 | . . 15 . . . Kicked 15 | . . 15 . . . Crushed . | . . . . . . Highest Temperature 274 | . . 205 274 247 261 Average Temperature 83 | . . 93 75 102 123 Received Heat Transfer 225 | . . . 165 . 60 Siege Activations . | . . . . . . Robots Corrupted . | . . . . . . Combat Hostiles . | . . . . . . Parts Fried . | . . . . . . Impact Corruptions 1 | . . . 1 . . Robots Melted . | . . . . . . Combat Hostiles . | . . . . . . Parts Melted . | . . . . . . Heat Transferred 185 | . . 185 . . . Parts Sabotaged . | . . . . . . Parts Stolen . | . . . . . . Parts Stripped . | . . . . . . Power Chain Reactions . | . . . . . . Alert | -11 -10 -10 -9 -9 -9 ------- Run | Yrd Mat Min Mat Min Exi Peak Influence 287 | . 54 21 287 40 . Initial 40 | . . 21 . 40 . Average 54 | . 36 11 90 40 . Maximum Alert Level 1 | . . . 1 . . Low Security (%) 91 | 100 100 100 81 100 . Level 1 8 | . . . 18 . . Level 2 . | . . . . . . Level 3 . | . . . . . . Level 4 . | . . . . . . Level 5 . | . . . . . . High Security . | . . . . . . Max Security . | . . . . . . Squads Dispatched 2 | . 1 1 . . . Investigation 1 | . 1 . . . . Extermination . | . . . . . . Reinforcement . | . . . . . . Assault 1 | . . 1 . . . Garrison . | . . . . . . Intercept . | . . . . . . Searches Triggered . | . . . . . . Construction Impeded . | . . . . . . Haulers Reinforced . | . . . . . . Active Scanning Responses . | . . . . . . Cargo Convoy Interrupts . | . . . . . . Stealth | -11 -10 -10 -9 -9 -9 --------- Run | Yrd Mat Min Mat Min Exi Distress Signals 4 | . 2 . 2 . . Communications Jammed . | . . . . . . Distress Signals . | . . . . . . Times Spotted 54 | . 3 15 19 . 17 Peak Tracking Total 14 | . 3 8 4 . 14 Tactical Retreats 9 | . 1 3 3 . 2 Traps | -11 -10 -10 -9 -9 -9 ------- Run | Yrd Mat Min Mat Min Exi Traps Triggered 2 | . . . 2 . . Indirectly . | . . . . . . Trap Hack Attempts . | . . . . . . Triggered . | . . . . . . Disarmed . | . . . . . . Reprogrammed . | . . . . . . Reused . | . . . . . . Traps Extracted . | . . . . . . Installed . | . . . . . . Triggered . | . . . . . . Machines | -11 -10 -10 -9 -9 -9 ---------- Run | Yrd Mat Min Mat Min Exi Machines Disabled 8 | . . . 6 1 1 Max in Single Turn 2 | . . . 2 1 1 Machines Repaired . | . . . . . . Machines Dismantled . | . . . . . . Machines Sabotaged . | . . . . . . Overloaded Fab Kills . | . . . . . . Hacking | -11 -10 -10 -9 -9 -9 --------- Run | Yrd Mat Min Mat Min Exi Machines Accessed 9 | . 4 . 5 . . Terminals 7 | . 4 . 3 . . Fabricators . | . . . . . . Repair Stations 1 | . . . 1 . . Recycling Units . | . . . . . . Scanalyzers 1 | . . . 1 . . Garrison Access . | . . . . . . Total Hacks 34 | . 15 . 19 . . Successful 22 | . 7 . 15 . . Failed 12 | . 8 . 4 . . Catastrophic . | . . . . . . Database Lockouts . | . . . . . . Manual 8 | . 3 . 5 . . Terminals 26 | . 15 . 11 . . Fabricators . | . . . . . . Repair Stations 4 | . . . 4 . . Recycling Units . | . . . . . . Scanalyzers 4 | . . . 4 . . Garrison Access . | . . . . . . Terminal Hacks 14 | . 7 . 7 . . Prototype ID Bank 1 | . 1 . . . . Branch Access Points 1 | . 1 . . . . Emergency Access Points 1 | . . . 1 . . Alert Level 2 | . 2 . . . . Unreport Threat 4 | . . . 4 . . Locate Traps 4 | . 2 . 2 . . Hauler Manifests 1 | . 1 . . . . Fabricator Hacks . | . . . . . . Repair Station Hacks 4 | . . . 4 . . Scan Component 2 | . . . 2 . . Repair 2 | . . . 2 . . Recycling Unit Hacks . | . . . . . . Scanalyzer 4 | . . . 4 . . Insert Component 2 | . . . 2 . . Analyze 2 | . . . 2 . . Garrison Access Hacks . | . . . . . . Unauthorized Hacks . | . . . . . . Terminals . | . . . . . . Fabricators . | . . . . . . Repair Stations . | . . . . . . Recycling Units . | . . . . . . Scanalyzers . | . . . . . . Garrison Access . | . . . . . . Data Cores Recovered . | . . . . . . Used . | . . . . . . Hacking Detections 6 | . 4 . 2 . . Full Trace Events 4 | . 4 . . . . Feedback Events 1 | . 1 . . . . Corruption 1 | . 1 . . . . Feedback Blocked . | . . . . . . Robot Schematics Acquired . | . . . . . . Robots Built . | . . . . . . Authchips . | . . . . . . Time . | . . . . . . Total Robot Build Rating . | . . . . . . Part Schematics Acquired 2 | . . . 2 . . Parts Built . | . . . . . . Authchips . | . . . . . . Time . | . . . . . . Total Part Build Rating . | . . . . . . Parts Repaired 2 | . . . 2 . . Time 70 | . . . 70 . . Parts Recycled . | . . . . . . Recycled Matter . | . . . . . . Retrieved Matter . | . . . . . . Retrieved Components . | . . . . . . Parts Scanalyzed 2 | . . . 2 . . Part Schematics Acquired 2 | . . . 2 . . Parts Damaged . | . . . . . . Bothacking | -11 -10 -10 -9 -9 -9 ------------ Run | Yrd Mat Min Mat Min Exi Used RIF Installer . | . . . . . . Robots Hacked . | . . . . . . Non-combat . | . . . . . . Combat . | . . . . . . Robot Hacks Applied . | . . . . . . Relay Couplers Released . | . . . . . . Fabnet Peak Effective % . | . . . . . . Robots Rewired . | . . . . . . Allies Hacked . | . . . . . . Hacks Repelled . | . . . . . . Allies | -11 -10 -10 -9 -9 -9 -------- Run | Yrd Mat Min Mat Min Exi Total Allies 1 | . . 1 . . . Largest Group 1 | . . 1 . . . Highest-Rated Group 31 | . . 31 . . . Highest-Rated Ally 31 | . . 31 . . . Total Orders . | . . . . . . Ally Attacks 3 | . . 3 . . . Total Damage 21 | . . 21 . . . Kills . | . . . . . . Allies Corrupted . | . . . . . . Allies Melted . | . . . . . . Intel | -11 -10 -10 -9 -9 -9 ------- Run | Yrd Mat Min Mat Min Exi Robot Analysis Total . | . . . . . . Derelict Logs Recovered 2 | . . 1 . 1 . Drone Launches . | . . . . . . Drone Recoveries . | . . . . . . Exploration | -11 -10 -10 -9 -9 -9 ------------- Run | Yrd Mat Min Mat Min Exi Turns Passed 1673 | 40 221 381 696 174 161 Spaces Moved 1116 | 49 228 257 330 128 124 Core 162 | 47 112 . . . 3 Treads . | . . . . . . Legs 796 | 2 116 257 172 128 121 Wheels 158 | . . . 158 . . Hover . | . . . . . . Flight . | . . . . . . Fastest Speed 50 | 50 50 120 105 120 50 Average Speed 116 | 56 85 120 137 124 123 Slowest Speed 190 | 120 120 190 190 125 130 Overloaded Moves . | . . . . . . Propulsion Burnouts . | . . . . . . Robots Hopped . | . . . . . . Cave-ins Triggered . | . . . . . . Exploration Rate (%) 37 | 3 42 61 35 34 47 Regions Visited 5 Branch Regions 3 Pre-discovered Areas 1 | . . 1 . . . Known Exits Taken 1 | . 1 . . . . Unknown Exits Taken 4 | 1 . 1 1 1 . Scrap Searched 1 | . . 1 . . . Spaces Dug 2 | . . . 2 . . Terrain Destroyed 19 | . . . 19 . . Melee . | . . . . . . Projectile 19 | . . . 19 . . AOE . | . . . . . . Terrain Rammed . | . . . . . . Walls Destroyed . | . . . . . . Machines Disabled . | . . . . . . Actions | -11 -10 -10 -9 -9 -9 --------- Run | Yrd Mat Min Mat Min Exi Total 1386 | 59 258 307 492 142 128 Wait 110 | . 7 16 86 1 . Move 1111 | 48 227 256 329 127 124 Hop . | . . . . . . Pick Up 26 | 5 8 2 8 3 . Fast Attach 21 | 4 3 . 12 2 . Attach 5 | . 2 2 1 . . Detach 5 | 1 1 . 3 . . Swap 11 | . 3 3 3 2 . Drop 27 | 1 7 3 10 6 . Fire 55 | . . 10 40 1 4 Melee . | . . . . . . Ram . | . . . . . . Kick 15 | . . 15 . . . Crush . | . . . . . . Escape Stasis . | . . . . . . Rewire . | . . . . . . Trap . | . . . . . . Miscellaneous . | . . . . . . Route ------- -11/Scrapyard -10/Materials (discovered 3 exits: *Mat / *Min x2) -10/Mines -9/Materials (discovered 2 exits: [*Mat] / [*Min]) -9/Mines -9/Exiles (discovered 1 exit: [*Min]) History --------- Turn | Location | Event 3 | -11/Scrapyard | Discovered new exit (range 15) 41 | -11/Scrapyard | Entered Materials 82 | -10/Materials | Identified exit to Mines 99 | -10/Materials | Discovered new exit (range 14) 262 | -10/Materials | Entered Mines 263 | -10/Mines | Met a Derelict testing a Signal Generator 280 | -10/Mines | Found Signal Generator 300 | -10/Mines | Build established: Mutant 353 | -10/Mines | Assembled infested the area 353 | -10/Mines | Learned location of Zion (-7) 358 | -10/Mines | Assisted by a Guerilla fighting off Assembled 570 | -10/Mines | Core integrity fell below 50% 625 | -10/Mines | Discovered new exit (range 16) 643 | -10/Mines | Entered Materials 643 | -9/Materials | Evolved 2 slots: Utility x2 666 | -9/Materials | Lost 3 parts (1n2w) 1016 | -9/Materials | Discovered new exit (range 15) 1161 | -9/Materials | Repaired Imp. Aluminum Leg 1201 | -9/Materials | Repaired Assault Cannon 1263 | -9/Materials | Discovered new exit (range 15) 1339 | -9/Materials | Entered Mines 1343 | -9/Mines | Met a Derelict who couldn't figure out how to use a Trap Extractor 1412 | -9/Mines | Found a hidden stash of uninstalled traps 1429 | -9/Mines | Met a Derelict bent on vengeance 1445 | -9/Mines | Learned location of 1 exit from Proximity Caves 1450 | -9/Mines | Found a damaged Exp. Sensor Array with a note attached 1456 | -9/Mines | Found Prototype Device 1507 | -9/Mines | Deemed a non-threat by the Exiles lab entrance 1508 | -9/Mines | Discovered new exit (range 5) 1513 | -9/Mines | Entered Exiles 1533 | -9/Exiles | Discovered new exit (range 15) 1562 | -9/Exiles | Met 8R-AWN 1580 | -9/Exiles | Met EX-HEX 1630 | -9/Exiles | Met EX-DEC 1652 | -9/Exiles | Attacked by the Exiles 1665 | -9/Exiles | Core integrity fell below 50% 1669 | -9/Exiles | Core integrity fell below 20% 1674 | -9/Exiles | Destroyed by DAS Turret with DAS Cannon Last Messages --------------- 01652_ A-02 Transporter destroyed. 01654_ EX-DEC: "Let's see what this bad boy can do..." 01654_ EX-DEC deploys DAS Turret. 01654_ Assault Cannon destroyed. 01654_ Knocked back. 01655_ Machine disabled. 01656_ Weight Redist. System destroyed. 01659_ EX-DEC knocked back. 01660_ Imp. Propulsion Shielding destroyed. 01661_ Machine disabled. 01662_ Assault Cannon destroyed. 01662_ Knocked back. 01663_ Sml. Storage Unit destroyed. 01664_ Knocked back. 01666_ EX-BIN: "I just want to science!" 01666_ Imp. Aluminum Leg destroyed. 01670_ Cld. Ion Engine destroyed. 01670_ Knocked back. 01672_ Imp. Titanium Leg destroyed. 01672_ Knocked back. Map ----- +----------------------------------------------------+ | ??????????????????????????"?????????????? ? | | ??????????????????????????" ????????????? ? | | ?????????????????????????"" ?????????????" ? | | ?????????????????????????"" ????????????" ?? | | ????????????????????????? ???????????#" ??? | | ??????????????????????????" ??????????##" #??? | | ??????????????????????????# ?????????##"" #??? | | ????????????????????????### ###?######"" #??? | | ?????????????????"""#####X# #"###""""""" ##?? | | ???????????????? """""" " "" ##? | | ???????????????? "" """ " ## | | ??????????????? " " | | ??????????????? | | ???????????????# | | ????????????????# | | ?????????????????# | | ?????????????????##" | | ??????????????????#""" """""" | | ?????????????????##" ######""" | | ?????????????????#"" z ""##????#####""" | | ?????????????????#""" """##?????????##"" | | ????????????????#""" """##???????????#"" | | ????????????????#""" ""#????????????#"" | | ????????????????#" ###?####??????""" | | ????????????????#""" t ## !%####?"" | | ????????????????#" @ =!"""" | | ?????????????????#"" | | ?????????????????#"""" % % | | ?????????????????## a | | ??????????????????#" % " "" | | ??????????????????#"""" % * ""## ##""" | | ??????????????????#"" !|% ""###?????#### | | ??????????????????#" c % """##??????????# | | ??????????????????#""" """#???????????? | | ??????????????????## ""##???????????? | | ???????????????????#"" """##????????????? | | ???????????????????##""" ##?????????????? | | ????????????????????##"""" c ##??????????????? | | ?????????????????????### #???????????????? | | ???????????????????????##### ##???????????????? | | ???????????????????????????## #????????????????? | | ????????????????????????????# #????????????????? | | ????????????????????????????# #????????????????? | | ????????????????????????????# #????????????????? | | ????????????????????????????# ?????????????????? | | ????????????????????????????# ?????????????????? | | ????????????????????????????? ?????????????????? | | ?????????????????????????????????????????????????? | | ?????????????????????????????????????????????????? | | ?????????????????????????????????????????????????? | +----------------------------------------------------+ Best States ------------- Heat Dissipation 28 Energy Generation 14 Energy Capacity 280 Matter Stores 300 Matter Capacity 300 Sight Range 16 Terrain Scan Range 14 Terrain Scan Density 210 Additional Mass Support 6 Propulsion Shielding 66 Evasion (%) 55 Targeting Accuracy 6 Item Schematics ----------------- Imp. Propulsion Shielding | -9/Materials | Scanalyzed Hvy. Ion Engine | -9/Materials | Scanalyzed Robot Schematics ------------------ None Fabricated ------------ Nothing Alien Tech Used ----------------- None Achievements -------------- None Challenges ------------ None Game ------ Seed ChargeCloakFemtoactuators Manual? 0 Play Time 00:22:15 Cumulative 147.9 hours Start 2024.06.20 @ 14:20:42 End 2024.06.20 @ 15:05:13 Sessions 1 Manual Loads 0 Difficulty Rogue Special Mode None Game No. 154 Rogue 154 Adventurer 0 Explorer 0 Win Type - Total 0 Types 0/0/0/0/0/0/0/0/0 Lore% 28 Gallery% 56 Achievement% 37 Wizard Run 0 Options --------- Layout 0 ASCII 0 Keyboard 1 Movement Vi Keybinds 0 Fullscreen 2 Font 36/Smallcaps Map View 76x50 Zoom Use 0% Tactical HUD 1 Map Filters NONE Filters NONE Steam 1 RUN: 4030e248-2c11-484f-9846-9404fbb3adbe